Cogmind - Beta 14 X2 @@@ ROGUE MODE // 2024.07.31 @ 11:38:35 Player: Jazzer Result: Destroyed by H-66 Slayer with Gauss Rifle Performance ------------- Evolutions (4) 2000 Regions Visited (5) 1000 Robots Destroyed (0) 0 Value Destroyed (0) 0 Prototype IDs (0) 0 Alien Tech Used (0) 0 Bonus (1325) 1325 TOTAL SCORE: 4325 Bonus ------- Pacifist 1325 Cogmind --------- Core Integrity 0/850 Matter 138/300 Energy 98/100 System Corruption 1% Temperature Cool (0) Movement Core (50) Location -6/Factory Parts ------- > --- POWER (3) -------- (None) > --- PROPULSION (8) --- (None) > --- UTILITY (2) ------ (None) > --- WEAPON (2) ------- (None) > --- INVENTORY (5) ---- Angular Momentum Engine Light Treads Cesium-ion Thruster Peak State ------------ > --- POWER ------------ Light Ion Engine > --- PROPULSION ------- VTOL Module VTOL Module VTOL Module VTOL Module Cesium-ion Thruster > --- UTILITY ---------- (None) > --- WEAPON ----------- (None) > --- INVENTORY -------- Light Treads Cesium-ion Thruster Cesium-ion Thruster Cesium-ion Thruster Cesium-ion Thruster [Rating: 13] Favorites ----------- Power Light Ion Engine Engine Light Ion Engine Propulsion VTOL Module Treads Light Treads Flight Unit VTOL Module Utility None Weapon None Build | -11 -10 -9 -8 -7 -6 ------- Run | Yrd Mat Mat Mat Fac Fac Slots Evolved 8 | . . 2 2 2 2 Power 2 | . . . 1 . 1 Propulsion 6 | . . 2 1 2 1 Utility . | . . . . . . Weapon . | . . . . . . Parts Attached 13 | . 2 5 2 4 . Power 1 | . . 1 . . . Engine 1 | . . 1 . . . Core . | . . . . . . Reactor . | . . . . . . Propulsion 12 | . 2 4 2 4 . Treads 2 | . 2 . . . . Leg . | . . . . . . Wheel . | . . . . . . Hover . | . . . . . . Flight 10 | . . 4 2 4 . Utility . | . . . . . . Device . | . . . . . . Storage . | . . . . . . Processor . | . . . . . . Hackware . | . . . . . . Protection . | . . . . . . Artifact . | . . . . . . Weapon . | . . . . . . Energy Gun . | . . . . . . Energy Cannon . | . . . . . . Ballistic Gun . | . . . . . . Ballistic Cannon . | . . . . . . Launcher . | . . . . . . Special Weapon . | . . . . . . Impact Weapon . | . . . . . . Slashing Weapon . | . . . . . . Piercing Weapon . | . . . . . . Special Melee Weapon . | . . . . . . Unidentified Prototypes . | . . . . . . Parts Lost 10 | . . . 6 4 . Power 1 | . . . 1 . . Propulsion 9 | . . . 5 4 . Utility . | . . . . . . Weapon . | . . . . . . Highest Loss Streak 5 | . . . 5 4 . To Critical Strikes . | . . . . . . Average Slot Usage (%) 15 | . 9 22 42 24 . Engine 2 | . . 2 9 . . Treads 2 | . 9 6 . . . Flight 11 | . . 13 33 24 . Naked Turns 155 | . 18 . . 3 134 Heaviest Build 3 | . . 3 3 . . Greatest Support 21 | 3 3 16 21 20 3 Greatest Overweight (x) . | . . . . . . Average Overweight (x) . | . . . . . . Largest Inventory Capacity 5 | 5 5 5 5 5 5 Average Capacity 5 | 5 5 5 5 5 5 Most Carried 5 | 1 2 2 5 4 3 Average Carried 1 | . 1 1 1 1 2 Final Capacity 5 | 5 5 5 5 5 5 Final Carried 5 | 1 1 1 5 2 3 Class Distribution -------------------- 65% | Mutant 34% | Sprinter Dominant Class ---------------- Mutant | -10/Materials Mutant | -9/Materials Sprinter | -8/Materials Sprinter | -7/Factory Mutant | -6/Factory Resources | -11 -10 -9 -8 -7 -6 ----------- Run | Yrd Mat Mat Mat Fac Fac Matter Collected 36 | 36 . . . . . Remotely . | . . . . . . Salvage Created . | . . . . . . Parts . | . . . . . . Haulers Intercepted . | . . . . . . Recyclers Shooed . | . . . . . . Parts Field Recycled . | . . . . . . Retrieved Matter . | . . . . . . Parts Self-Destructed . | . . . . . . Prevented . | . . . . . . Kills | -11 -10 -9 -8 -7 -6 ------- Run | Yrd Mat Mat Mat Fac Fac Combat Hostiles Destroyed . | . . . . . . Classes Destroyed . | . . . . . . Best Kill Streak . | . . . . . . Combat Bots Only . | . . . . . . Max Kills in Single Turn . | . . . . . . Gunslinging . | . . . . . . Exploded . | . . . . . . Melee . | . . . . . . Uniques/NPCs Destroyed . | . . . . . . Combat | -11 -10 -9 -8 -7 -6 -------- Run | Yrd Mat Mat Mat Fac Fac Hostile Shots Fired 173 | . 15 15 26 19 98 Missed 68 | . 6 10 13 7 32 Damage Taken 1540 | . 85 59 290 238 868 Core 1214 | . 48 47 110 141 868 Absorbed by Shields . | . . . . . . Core Remaining (%) 85 | 100 80 88 80 79 . Volleys Fired . | . . . . . . Largest . | . . . . . . Hottest . | . . . . . . Shots Fired . | . . . . . . Gun . | . . . . . . Cannon . | . . . . . . Launcher . | . . . . . . Special . | . . . . . . Kinetic . | . . . . . . Thermal . | . . . . . . Explosive . | . . . . . . Electromagnetic . | . . . . . . Robot Hit Streak . | . . . . . . Robot Miss Streak . | . . . . . . Penetration Max . | . . . . . . Secondary Targets . | . . . . . . Shots Hit Robots . | . . . . . . Core Hits . | . . . . . . Critical Kills . | . . . . . . Critical Parts Destroyed . | . . . . . . Critical Strikes . | . . . . . . Melee Attacks . | . . . . . . Impact . | . . . . . . Slashing . | . . . . . . Piercing . | . . . . . . Sneak Attacks . | . . . . . . Combat Hostiles . | . . . . . . Follow-up Attacks . | . . . . . . Damage Inflicted 73 | . 12 . 3 . 58 Guns . | . . . . . . Cannons . | . . . . . . Explosions . | . . . . . . Melee . | . . . . . . Ramming 73 | . 12 . 3 . 58 Kinetic . | . . . . . . Thermal . | . . . . . . Explosive . | . . . . . . Electromagnetic . | . . . . . . Impact . | . . . . . . Slashing . | . . . . . . Piercing . | . . . . . . Highest Corruption 3 | . . . 3 . 1 Average Corruption 1 | . . . 3 . 1 Corruption Purged . | . . . . . . Corruption Blocked . | . . . . . . Overload Shots . | . . . . . . Overflow Damage . | . . . . . . Projectiles . | . . . . . . Explosions . | . . . . . . Melee . | . . . . . . Knockbacks 1 | . . . . . 1 Impact 1 | . . . . . 1 Kinetic . | . . . . . . Secondary . | . . . . . . Self-Inflicted Damage 31 | . 6 . 1 . 24 Shots . | . . . . . . Rammed 22 | . 4 . 1 . 17 Targets Rammed 22 | . 4 . 1 . 17 Kicked . | . . . . . . Crushed . | . . . . . . Highest Temperature 6 | . . 6 3 . . Average Temperature 4 | . . 4 3 . . Received Heat Transfer 150 | . . 33 27 . 90 Siege Activations . | . . . . . . Robots Corrupted . | . . . . . . Combat Hostiles . | . . . . . . Parts Fried . | . . . . . . Impact Corruptions . | . . . . . . Robots Melted . | . . . . . . Combat Hostiles . | . . . . . . Parts Melted . | . . . . . . Heat Transferred . | . . . . . . Parts Sabotaged . | . . . . . . Parts Stolen . | . . . . . . Parts Stripped . | . . . . . . Power Chain Reactions . | . . . . . . Alert | -11 -10 -9 -8 -7 -6 ------- Run | Yrd Mat Mat Mat Fac Fac Peak Influence 145 | . 45 85 145 57 37 Initial 42 | . . 25 35 42 22 Average 37 | . 9 41 87 44 25 Maximum Alert Level . | . . . . . . Low Security (%) 100 | 100 100 100 100 100 100 Level 1 . | . . . . . . Level 2 . | . . . . . . Level 3 . | . . . . . . Level 4 . | . . . . . . Level 5 . | . . . . . . High Security . | . . . . . . Max Security . | . . . . . . Squads Dispatched 3 | . . . 1 1 1 Investigation . | . . . . . . Extermination . | . . . . . . Reinforcement 3 | . . . 1 1 1 Assault . | . . . . . . Garrison . | . . . . . . Intercept . | . . . . . . Searches Triggered . | . . . . . . Construction Impeded . | . . . . . . Haulers Reinforced . | . . . . . . Active Scanning Responses . | . . . . . . Cargo Convoy Interrupts . | . . . . . . Stealth | -11 -10 -9 -8 -7 -6 --------- Run | Yrd Mat Mat Mat Fac Fac Distress Signals 2 | . 1 1 . . . Communications Jammed . | . . . . . . Distress Signals . | . . . . . . Times Spotted 40 | . 7 4 15 6 8 Peak Tracking Total 13 | . 6 5 13 6 8 Tactical Retreats 3 | . 2 . 1 . . Traps | -11 -10 -9 -8 -7 -6 ------- Run | Yrd Mat Mat Mat Fac Fac Traps Triggered 4 | . 1 . . 3 . Indirectly . | . . . . . . Trap Hack Attempts . | . . . . . . Triggered . | . . . . . . Disarmed . | . . . . . . Reprogrammed . | . . . . . . Reused . | . . . . . . Traps Extracted . | . . . . . . Installed . | . . . . . . Triggered . | . . . . . . Machines | -11 -10 -9 -8 -7 -6 ---------- Run | Yrd Mat Mat Mat Fac Fac Machines Disabled . | . . . . . . Max in Single Turn . | . . . . . . Machines Repaired . | . . . . . . Machines Dismantled . | . . . . . . Machines Sabotaged . | . . . . . . Overloaded Fab Kills . | . . . . . . Hacking | -11 -10 -9 -8 -7 -6 --------- Run | Yrd Mat Mat Mat Fac Fac Machines Accessed 2 | . . 1 1 . . Terminals 2 | . . 1 1 . . Fabricators . | . . . . . . Repair Stations . | . . . . . . Recycling Units . | . . . . . . Scanalyzers . | . . . . . . Garrison Access . | . . . . . . Total Hacks 3 | . . 2 1 . . Successful . | . . . . . . Failed 3 | . . 2 1 . . Catastrophic 2 | . . 1 1 . . Database Lockouts . | . . . . . . Manual 1 | . . . 1 . . Terminals 3 | . . 2 1 . . Fabricators . | . . . . . . Repair Stations . | . . . . . . Recycling Units . | . . . . . . Scanalyzers . | . . . . . . Garrison Access . | . . . . . . Terminal Hacks . | . . . . . . Fabricator Hacks . | . . . . . . Repair Station Hacks . | . . . . . . Recycling Unit Hacks . | . . . . . . Scanalyzer . | . . . . . . Garrison Access Hacks . | . . . . . . Unauthorized Hacks . | . . . . . . Terminals . | . . . . . . Fabricators . | . . . . . . Repair Stations . | . . . . . . Recycling Units . | . . . . . . Scanalyzers . | . . . . . . Garrison Access . | . . . . . . Data Cores Recovered . | . . . . . . Used . | . . . . . . Hacking Detections 2 | . . 1 1 . . Full Trace Events . | . . . . . . Feedback Events . | . . . . . . Feedback Blocked . | . . . . . . Robot Schematics Acquired . | . . . . . . Robots Built . | . . . . . . Authchips . | . . . . . . Time . | . . . . . . Total Robot Build Rating . | . . . . . . Part Schematics Acquired . | . . . . . . Parts Built . | . . . . . . Authchips . | . . . . . . Time . | . . . . . . Total Part Build Rating . | . . . . . . Parts Repaired . | . . . . . . Time . | . . . . . . Parts Recycled . | . . . . . . Recycled Matter . | . . . . . . Retrieved Matter . | . . . . . . Retrieved Components . | . . . . . . Parts Scanalyzed . | . . . . . . Part Schematics Acquired . | . . . . . . Parts Damaged . | . . . . . . Bothacking | -11 -10 -9 -8 -7 -6 ------------ Run | Yrd Mat Mat Mat Fac Fac Used RIF Installer . | . . . . . . Robots Hacked . | . . . . . . Non-combat . | . . . . . . Combat . | . . . . . . Robot Hacks Applied . | . . . . . . Relay Couplers Released . | . . . . . . Fabnet Peak Effective % . | . . . . . . Robots Rewired . | . . . . . . Allies Hacked . | . . . . . . Hacks Repelled . | . . . . . . Allies | -11 -10 -9 -8 -7 -6 -------- Run | Yrd Mat Mat Mat Fac Fac Total Allies . | . . . . . . Largest Group . | . . . . . . Highest-Rated Group . | . . . . . . Highest-Rated Ally . | . . . . . . Total Orders . | . . . . . . Ally Attacks . | . . . . . . Total Damage . | . . . . . . Kills . | . . . . . . Allies Corrupted . | . . . . . . Allies Melted . | . . . . . . Intel | -11 -10 -9 -8 -7 -6 ------- Run | Yrd Mat Mat Mat Fac Fac Robot Analysis Total . | . . . . . . Derelict Logs Recovered . | . . . . . . Drone Launches . | . . . . . . Drone Recoveries . | . . . . . . Exploration | -11 -10 -9 -8 -7 -6 ------------- Run | Yrd Mat Mat Mat Fac Fac Turns Passed 370 | 11 65 48 66 46 134 Spaces Moved 809 | 21 116 99 222 125 226 Core 426 | 21 116 59 . 4 226 Treads . | . . . . . . Legs . | . . . . . . Wheels . | . . . . . . Hover . | . . . . . . Flight 383 | . . 40 222 121 . Fastest Speed 23 | 50 50 26 23 26 50 Average Speed 39 | 50 50 40 26 33 50 Slowest Speed 50 | 50 50 50 32 50 50 Overloaded Moves . | . . . . . . Propulsion Burnouts . | . . . . . . Robots Hopped 5 | . . . 3 2 . Cave-ins Triggered . | . . . . . . Exploration Rate (%) 18 | 3 34 19 36 8 9 Regions Visited 5 Branch Regions . Pre-discovered Areas . | . . . . . . Known Exits Taken . | . . . . . . Unknown Exits Taken 5 | 1 1 1 1 1 . Scrap Searched . | . . . . . . Spaces Dug . | . . . . . . Terrain Destroyed . | . . . . . . Melee . | . . . . . . Projectile . | . . . . . . AOE . | . . . . . . Terrain Rammed . | . . . . . . Walls Destroyed . | . . . . . . Machines Disabled . | . . . . . . Actions | -11 -10 -9 -8 -7 -6 --------- Run | Yrd Mat Mat Mat Fac Fac Total 846 | 21 122 104 225 127 247 Wait . | . . . . . . Move 795 | 20 115 98 216 120 226 Hop 5 | . . . 3 2 . Pick Up 7 | 1 . . 4 1 1 Fast Attach 7 | . 1 4 2 . . Attach 6 | . 1 1 . 4 . Detach 2 | . 1 1 . . . Swap . | . . . . . . Drop . | . . . . . . Fire . | . . . . . . Melee . | . . . . . . Ram 21 | . 4 . . . 17 Kick . | . . . . . . Crush . | . . . . . . Escape Stasis . | . . . . . . Rewire 3 | . . . . . 3 Trap . | . . . . . . Miscellaneous . | . . . . . . Route ------- -11/Scrapyard -10/Materials (discovered 2 exits: *Mat / [*Min]) -9/Materials -8/Materials -7/Factory -6/Factory History --------- Turn | Location | Event 6 | -11/Scrapyard | Discovered new exit (range 15) 12 | -11/Scrapyard | Entered Materials 57 | -10/Materials | Discovered new exit (range 9) 70 | -10/Materials | Discovered new exit (range 15) 77 | -10/Materials | Entered another Materials area 77 | -9/Materials | Evolved 2 slots: Propulsion x2 122 | -9/Materials | Discovered new exit (range 10) 125 | -9/Materials | Entered another Materials area 125 | -8/Materials | Evolved 2 slots: Power x1, Propulsion x1 179 | -8/Materials | Discovered new exit (range 8) 191 | -8/Materials | Entered Factory 191 | -7/Factory | Evolved 2 slots: Propulsion x2 222 | -7/Factory | Lost 5 parts (1p4n) 233 | -7/Factory | Discovered new exit (range 7) 237 | -7/Factory | Entered another Factory area 237 | -6/Factory | Evolved 2 slots: Power x1, Propulsion x1 257 | -6/Factory | Lost 4 parts (4n) 358 | -6/Factory | Core integrity fell below 50% 367 | -6/Factory | Core integrity fell below 20% 371 | -6/Factory | Destroyed by H-66 Slayer with Gauss Rifle Last Messages --------------- 00355_ Slammed into K-01 Serf. 00357_ Slammed into H-66 Slayer. 00357_ Penetrated by Slug. 00358_ Slammed into H-66 Slayer. 00360_ Penetrated by Slug. 00361_ Slammed into H-66 Slayer. 00363_ H-66 Slayer knocked back. 00363_ Destabilizing: System corrupted (+1). 00363_ Slug penetrates Wall. 00364_ Slammed into H-66 Slayer. 00366_ Slammed into R-10 Processor. 00366_ Destabilizing: Core damaged (-42). 00366_ Penetrated by Slug. 00368_ C-30 ARC bursts open, deploying its payload. 00368_ H-66 Slayer unfolds itself. 00368_ Penetrated by Slug. 00368_ Slug penetrates Wall. 00368_ Penetrated by Slug. 00370_ K-01 Serf destroyed. 00370_ Penetrated by Slug. Map ----- +----------------------------------------------------+ | ?????????????????????????????????????????????????? | | ?????????????????????????????????????????????????? | | ?????????????????????????????????????????????????? | | ?????????????????????????????????????????????????? | | ?????????????????????????????????????????????????? | | ?????????????????????????????????????????????????? | | ?????????????????????????????????????????????????? | | ?????????????????????????????????????????????????? | | ?????????????????????????????????????????????????? | | ?????????????????????????????????????????????????? | | ??????????????????????? ???????????????????????? | | ????????????????????? ???????????????????????? | | ????????????????????# ???????????????????????? | | ????????????????????# ???????????????????????? | | ????????????????????# ???????????????????????? | | ????????????????????# ???????????????????????? | | ????????????????????# ???????????????????????? | | ????????????????????# #??????????????????????? | | ????????????????????# #??????????????????????? | | ????????????????????# #??????????????????????? | | ????????????????????# #??????????????????????? | | ????????????????????# w#??????????????????????? | | ????????????????????# *#??????????????????????? | | ###########?????????# !%#??????????????????????? | | #???????# =#??????????????????????? | | """"""""" #"??????# @#??????????????????????? | | #? ????# #??????????????????????? | | #?"" ???# #??????????????????????? | | ]] #?"" ?# #??????????????????????? | | ] #""" #hh #??????????????????????? | | # + #??????????????????????? | | """"""""" #""" # #??????????????????????? | | ????"" # #??????????????????????? | | """""""""????"" ?##### #??????????????????????? | | ????? ??????# #??????????????????????? | | ????""" ???????# #??????????????????????? | | ########???????"????????# #??????????????????????? | | ????????????????????????#h#??????????????????????? | | ###?????????????????????# #??????????????????????? | | #?????????????????????#R#??????????????????????? | | #+######????????????????# #??????????????????????? | | #????????????????# #???########???????????? | | """"" #????????????????# #?? #???????????? | | """"" #????????????????# #?? #???????????? | | """"" #???????????????## ## #???????????? | | """"" ################# # #???????????? | | + + #???????????? | | """""" ################# # #???????????? | | """""" #???????????????##### #???????????? | | """""" #????????????????????? #???????????? | +----------------------------------------------------+ Best States ------------- Heat Dissipation 37 Energy Generation 10 Energy Capacity 125 Matter Stores 138 Matter Capacity 300 Sight Range 16 Terrain Scan Density 10 Evasion (%) 64 Item Schematics ----------------- None Robot Schematics ------------------ None Fabricated ------------ Nothing Alien Tech Used ----------------- None Achievements -------------- None Challenges ------------ None Game ------ Seed EtherialAutogunBiocell Manual? 0 Play Time 00:09:37 Cumulative 372.5 hours Start 2024.07.31 @ 11:30:39 End 2024.07.31 @ 11:38:35 Sessions 1 Manual Loads 0 Difficulty Rogue Special Mode None Game No. 224 Rogue 224 Adventurer 0 Explorer 0 Win Type - Total 2 Types 2/0/0/0/0/0/0/0/0 Lore% 71 Gallery% 69 Achievement% 52 Wizard Run 0 Options --------- Layout 2 ASCII 0 Keyboard 1 Movement Numpad Keybinds 0 Fullscreen 2 Font 18/SmallcapsGlow Map View 76x59 Zoom Use 0% Tactical HUD 1 Map Filters NONE Filters NONE Steam 1 RUN: aac8b7b8-4906-4081-8bc2-528204ce8880